[Event "POL-ch Women MOKATE 2020"]
[Site "Ostrow Wielkopolski"]
[Date "2020.08.10"]
[Round "7.5"]
[White "Majdan, Joanna"]
[Black "Socko, Monika"]
[Result "1-0"]
[ECO "B32"]
[WhiteElo "2325"]
[BlackElo "2428"]
[Annotator "ChessBase"]
[PlyCount "155"]
[EventDate "2020.08.04"]
[EventType "tourn"]
[EventCountry "POL"]
[SourceTitle "playchess.com"]
[Source "ChessBase"]
[SourceQuality "1"]
[TimeControl "40/5400+30:1800+30"]

1. e4 {[%emt 0:00:00]} c5 {[%emt 0:00:00]} 2. Nf3 {[%emt 0:00:00]} Nc6 {[%emt 0:00:00]} 3. d4 {[%emt 0:00:00]} cxd4 {[%emt 0:00:00]} 4. Nxd4 {[%emt 0:00:00]} e5 {[%emt 0:00:00]} 5. Nb5 {[%emt 0:00:00]} d6 {[%emt 0:00:00]} 6. c4 {[%emt 0:01:10]} Be7 {[%emt 0:00:00]} 7. N1c3 {[%emt 0:01:15]} a6 {[%emt 0:00:03]} 8. Na3 {[%emt 0:00:04]} f5 {[%emt 0:00:38]} 9. exf5 {[%emt 0:00:05]} Bxf5 {[%emt 0:00:04]} 10. Bd3 {[%emt 0:00:52]} Be6 {[%emt 0:00:25]} 11. O-O {[%emt 0:05:14]} Nf6 {[%emt 0:00:07]} 12. Nc2 {[%emt 0:02:42]} O-O {[%emt 0:00:05]} 13. Bg5 {[%emt 0:06:33]} Ng4 {[%emt 0:10:32]} 14. Bxe7 {[%emt 0:01:10]} Qxe7 {[%emt 0:00:37]} 15. h3 {[%emt 0:12:15]} Nf6 {[%emt 0:07:50]} 16. Nd5 {[%emt 0:14:49]} Qf7 {[%emt 0:00:53]} 17. Nxf6+ {[%emt 0:00:38]} gxf6 {[%emt 0:03:02]} 18. b3 {[%emt 0:03:17]} f5 {[%emt 0:03:37]} 19. f4 {[%emt 0:00:04]} Rad8 {[%emt 0:01:23]} 20. Qe1 {[%emt 0:03:17]} Qg7 {[%emt 0:01:55]} 21. Rd1 {[%emt 0:03:38]} Kh8 {[%emt 0:00:57]} 22. Rd2 {[%emt 0:01:22]} Rde8 {[%emt 0:09:32]} 23. Be2 {[%emt 0:03:30]} Rd8 {[%emt 0:11:29]} 24. Bf3 {[%emt 0:03:50]} e4 {[%emt 0:01:59]} 25. Be2 {[%emt 0:02:00]} d5 {[%emt 0:00:52]} 26. cxd5 {[%emt 0:00:05]} Rxd5 {[%emt 0:03:39]} 27. Rxd5 {[%emt 0:01:00]} Bxd5 {[%emt 0:00:01]} 28. Ne3 {[%emt 0:00:18]} Be6 {[%emt 0:01:01]} 29. Bc4 {[%emt 0:00:38]} Bxc4 {[%emt 0:00:59]} 30. bxc4 {[%emt 0:00:42]} Nd4 {[%emt 0:02:20]} 31. Kh1 {[%emt 0:01:46]} Ne6 {[%emt 0:01:38]} 32. Qa5 {[%emt 0:01:30]} Qf6 {[%emt 0:01:45]} 33. Qb6 {[%emt 0:03:54]} Qd4 {[%emt 0:10:24]} 34. Qxe6 {[%emt 0:01:55]} Qxe3 {[%emt 0:00:04]} 35. Qe5+ {[%emt 0:00:05]} Kg8 {[%emt 0:00:09]} 36. Rd1 {[%emt 0:08:31]} Qg3 {[%emt 0:02:12]} 37. Rd7 {[%emt 0:00:07]} Qg6 {[%emt 0:00:09]} 38. Rxb7 {[%emt 0:01:30]} Rd8 {[%emt 0:03:33]} 39. Re7 {[%emt 0:01:03]} h5 {[%emt 0:01:52]} 40. h4 {[%emt 0:00:00]} Rf8 {[%emt 0:00:00]} 41. c5 {[%emt 0:05:57]} Qf6 {[%emt 0:06:27]} 42. Qxf6 {[%emt 0:00:26]} Rxf6 {[%emt 0:00:01]} 43. Kg1 {[%emt 0:00:21]} Kf8 {[%emt 0:04:37]} 44. Re5 {[%emt 0:00:02]} Kg7 {[%emt 0:00:07]} 45. Kf2 {[%emt 0:00:09]} Rf8 {[%emt 0:03:40]} 46. Ke3 {[%emt 0:01:28]} Kf6 {[%emt 0:00:40]} 47. Rd5 {[%emt 0:00:12]} Rg8 {[%emt 0:00:41]} 48. Rd6+ {[%emt 0:01:31]} Ke7 {[%emt 0:00:08]} 49. Rxa6 {[%emt 0:02:09]} Rxg2 {[%emt 0:01:00]} 50. Kd4 {[%emt 0:00:21]} Kd7 {[%emt 0:03:13]} 51. Ke5 {[%emt 0:00:46]} Rc2 {[%emt 0:10:43]} 52. Kxf5 {[%emt 0:00:16]} e3 {[%emt 0:00:01]} 53. Rd6+ {[%emt 0:02:24]} Kc7 {[%emt 0:00:28]} 54. Rd3 {[%emt 0:02:30]} e2 {[%emt 0:03:36]} 55. Re3 {[%emt 0:00:04]} Kc6 {[%emt 0:00:02]} 56. Kg6 {[%emt 0:06:07]} Kxc5 {[%emt 0:00:21]} 57. f5 {[%emt 0:00:04]} Kd4 {[%emt 0:00:02]} 58. Re8 {[%emt 0:00:31]} Kd3 {[%emt 0:00:38]} 59. f6 {[%emt 0:01:02]} Rc1 {[%emt 0:01:28]} 60. f7 {[%emt 0:00:28]} Rg1+ {[%emt 0:00:04]} 61. Kxh5 {[%emt 0:05:34]} Rf1 {[%emt 0:00:02]} 62. Kg6 {[%emt 0:02:47]} Rg1+ {[%emt 0:00:03]} 63. Kh7 {[%emt 0:00:13]} Rf1 {[%emt 0:00:02]} 64. Kg7 {[%emt 0:02:34]} Rg1+ {[%emt 0:00:04]} 65. Kf8 {[%emt 0:01:59]} e1=R {[%emt 0:05:35]} 66. Rxe1 {[%emt 0:00:08]} Rxe1 {[%emt 0:00:02]} 67. h5 {[%emt 0:00:33]} Kc4 {[%emt 0:11:59]} 68. h6 {[%emt 0:00:19]} Rh1 {[%emt 0:00:03]} 69. Ke8 {[%emt 0:01:25]} Re1+ {[%emt 0:00:06]} 70. Kd8 {[%emt 0:00:17]} Rd1+ {[%emt 0:00:50]} 71. Kc8 {[%emt 0:00:06]} Rf1 {[%emt 0:00:43]} 72. h7 {[%emt 0:00:03]} Rxf7 {[%emt 0:00:08]} 73. h8=Q {[%emt 0:00:03]} Ra7 {[%emt 0:00:28]} 74. Qb2 {[%emt 0:00:24]} Ra5 {[%emt 0:00:12]} 75. Qb3+ {[%emt 0:00:23]} Kc5 {[%emt 0:00:01]} 76. a4 {[%emt 0:00:17]} Kc6 {[%emt 0:00:23]} 77. Qc4+ {[%emt 0:00:50]} Kd6 {[%emt 0:00:01]} 78. Qc7+ {[%emt 0:00:06]} 1-0

[Event "POL-ch Women MOKATE 2020"]
[Site "Ostrow Wielkopolski"]
[Date "2020.08.11"]
[Round "8.1"]
[White "Kucharska, Honorata"]
[Black "Socko, Monika"]
[Result "1/2-1/2"]
[ECO "E62"]
[WhiteElo "2113"]
[BlackElo "2428"]
[Annotator "ChessBase"]
[PlyCount "89"]
[EventDate "2020.08.04"]
[EventType "tourn"]
[EventCountry "POL"]
[SourceTitle "playchess.com"]
[Source "ChessBase"]
[SourceQuality "1"]
[TimeControl "40/5400+30:1800+30"]

1. d4 {[%emt 0:00:00]} Nf6 {[%emt 0:00:00]} 2. c4 {[%emt 0:00:00]} g6 {[%emt 0:00:00]} 3. Nf3 {[%emt 0:00:01]} Bg7 {[%emt 0:00:00]} 4. g3 {[%emt 0:00:07]} O-O {[%emt 0:01:00]} 5. Bg2 {[%emt 0:00:25]} d6 {[%emt 0:00:05]} 6. O-O {[%emt 0:00:17]} Nc6 {[%emt 0:00:04]} 7. Nc3 {[%emt 0:00:43]} Bg4 {[%emt 0:00:14]} 8. d5 {[%emt 0:01:15]} Bxf3 {[%emt 0:04:23]} 9. exf3 {[%emt 0:01:35]} Na5 {[%emt 0:00:45]} 10. Qd3 {[%emt 0:03:31]} c5 {[%emt 0:08:52]} 11. b3 {[%emt 0:06:18]} a6 {[%emt 0:00:22]} 12. Bb2 {[%emt 0:03:55]} Rb8 {[%emt 0:00:21]} 13. Rfe1 {[%emt 0:03:26]} b5 {[%emt 0:10:41]} 14. cxb5 {[%emt 0:04:37]} axb5 {[%emt 0:00:07]} 15. Nxb5 {[%emt 0:01:30]} Nxd5 {[%emt 0:07:11]} 16. Bxg7 {[%emt 0:03:55]} Kxg7 {[%emt 0:00:05]} 17. Qxd5 {[%emt 0:10:04]} Rxb5 {[%emt 0:00:14]} 18. f4 {[%emt 0:00:32]} e6 {[%emt 0:18:04]} 19. Qd3 {[%emt 0:02:16]} Qb6 {[%emt 0:01:35]} 20. Qc3+ {[%emt 0:03:29]} Kg8 {[%emt 0:00:34]} 21. h4 {[%emt 0:03:39]} d5 {[%emt 0:04:38]} 22. h5 {[%emt 0:05:40]} Nc6 {[%emt 0:03:18]} 23. Qf6 {[%emt 0:04:33]} Qd8 {[%emt 0:08:17]} 24. Rxe6 {[%emt 0:03:54]} fxe6 {[%emt 0:00:08]} 25. Qxe6+ {[%emt 0:00:03]} Kg7 {[%emt 0:00:24]} 26. Qxc6 {[%emt 0:00:06]} Qf6 {[%emt 0:00:56]} 27. Qxb5 {[%emt 0:00:57]} Qxa1+ {[%emt 0:00:05]} 28. Kh2 {[%emt 0:00:11]} Qd4 {[%emt 0:00:50]} 29. Qd7+ {[%emt 0:01:20]} Kh6 {[%emt 0:00:17]} 30. hxg6 {[%emt 0:08:08]} hxg6 {[%emt 0:00:04]} 31. Kg1 {[%emt 0:08:01]} Qd1+ {[%emt 0:07:29]} 32. Bf1 {[%emt 0:00:37]} d4 {[%emt 0:02:54]} 33. Kg2 {[%emt 0:02:34]} Qc2 {[%emt 0:01:54]} 34. Qe7 {[%emt 0:03:32]} Qf5 {[%emt 0:01:54]} 35. Bd3 {[%emt 0:00:20]} Qd5+ {[%emt 0:16:19]} 36. Kg1 {[%emt 0:02:44]} Rf7 {[%emt 0:01:24]} 37. Qe8 {[%emt 0:00:26]} Rg7 {[%emt 0:01:22]} 38. Qh8+ {[%emt 0:01:17]} Rh7 {[%emt 0:00:01]} 39. Qf6 {[%emt 0:06:26]} Qh5 {[%emt 0:00:47]} 40. f3 {[%emt 0:00:00]} Rg7 {[%emt 0:00:00]} 41. Kg2 {[%emt 0:02:02]} Kh7 {[%emt 0:00:56]} 42. g4 {[%emt 0:00:57]} Qh6 {[%emt 0:00:47]} 43. a4 {[%emt 0:00:30]} Rb7 {[%emt 0:02:21]} 44. Be4 {[%emt 0:05:11]} Ra7 {[%emt 0:05:13]} 45. Bd3 {[%emt 0:02:26]} 1/2-1/2

[Event "POL-ch Women MOKATE 2020"]
[Site "Ostrow Wielkopolski"]
[Date "2020.08.11"]
[Round "8.2"]
[White "Kulon, Klaudia"]
[Black "Majdan, Joanna"]
[Result "0-1"]
[ECO "D02"]
[WhiteElo "2336"]
[BlackElo "2325"]
[Annotator "ChessBase"]
[PlyCount "96"]
[EventDate "2020.08.04"]
[EventType "tourn"]
[EventCountry "POL"]
[SourceTitle "playchess.com"]
[Source "ChessBase"]
[SourceQuality "1"]
[TimeControl "40/5400+30:1800+30"]

1. d4 {[%emt 0:00:00]} d5 {[%emt 0:00:03]} 2. Nf3 {[%emt 0:00:00]} e6 {[%emt 0:00:22]} 3. Bf4 {[%emt 0:00:44]} Nf6 {[%emt 0:00:05]} 4. e3 {[%emt 0:00:27]} Bd6 {[%emt 0:00:05]} 5. Bg3 {[%emt 0:01:14]} O-O {[%emt 0:00:07]} 6. Nbd2 {[%emt 0:00:32]} b6 {[%emt 0:00:56]} 7. Ne5 {[%emt 0:05:17]} c5 {[%emt 0:03:15]} 8. c3 {[%emt 0:00:04]} Bb7 {[%emt 0:00:28]} 9. Bd3 {[%emt 0:05:58]} Qc7 {[%emt 0:05:38]} 10. f4 {[%emt 0:02:11]} c4 {[%emt 0:03:49]} 11. Bc2 {[%emt 0:00:34]} b5 {[%emt 0:00:46]} 12. Qb1 {[%emt 0:06:11]} g6 {[%emt 0:04:37]} 13. Bh4 {[%emt 0:01:51]} Ne8 {[%emt 0:02:49]} 14. O-O {[%emt 0:10:32]} Nc6 {[%emt 0:04:13]} 15. e4 {[%emt 0:02:58]} f5 {[%emt 0:00:44]} 16. exf5 {[%emt 0:00:53]} exf5 {[%emt 0:00:25]} 17. Ndf3 {[%emt 0:00:40]} Be7 {[%emt 0:06:30]} 18. Qe1 {[%emt 0:03:29]} Bxh4 {[%emt 0:05:10]} 19. Qxh4 {[%emt 0:00:04]} Nf6 {[%emt 0:02:16]} 20. h3 {[%emt 0:04:57]} Ne4 {[%emt 0:03:47]} 21. g4 {[%emt 0:04:44]} fxg4 {[%emt 0:03:03]} 22. Bxe4 {[%emt 0:02:02]} dxe4 {[%emt 0:00:35]} 23. Ng5 {[%emt 0:00:35]} Nxe5 {[%emt 0:14:03]} 24. fxe5 {[%emt 0:00:45]} e3 {[%emt 0:05:33]} 25. Rae1 {[%emt 0:07:27]} h5 {[%emt 0:08:51]} 26. Rxe3 {[%emt 0:02:11]} Rxf1+ {[%emt 0:02:32]} 27. Kxf1 {[%emt 0:00:03]} gxh3 {[%emt 0:02:41]} 28. Qxh3 {[%emt 0:02:24]} Rf8+ {[%emt 0:00:19]} 29. Ke1 {[%emt 0:00:56]} Rf5 {[%emt 0:00:26]} 30. Qg3 {[%emt 0:01:37]} Qe7 {[%emt 0:03:53]} 31. Ne4 {[%emt 0:01:03]} Kg7 {[%emt 0:01:03]} 32. Nd6 {[%emt 0:00:51]} Rg5 {[%emt 0:00:50]} 33. Qf2 {[%emt 0:00:59]} Bc6 {[%emt 0:02:24]} 34. Nc8 {[%emt 0:05:21]} Qe6 {[%emt 0:01:53]} 35. Nxa7 {[%emt 0:01:28]} Rf5 {[%emt 0:01:18]} 36. Qh4 {[%emt 0:03:50]} Be8 {[%emt 0:03:15]} 37. Qd8 {[%emt 0:05:47]} Qf7 {[%emt 0:01:17]} 38. Qh4 {[%emt 0:04:38]} Qxa7 {[%emt 0:00:40]} 39. a3 {[%emt 0:00:02]} Qf7 {[%emt 0:00:53]} 40. e6 {[%emt 0:00:00]} Qf6 {[%emt 0:00:00]} 41. Qh3 {[%emt 0:02:31]} g5 {[%emt 0:02:01]} 42. Qg2 {[%emt 0:01:31]} g4 {[%emt 0:08:06]} 43. a4 {[%emt 0:03:08]} bxa4 {[%emt 0:00:30]} 44. d5 {[%emt 0:00:14]} Qg5 {[%emt 0:02:31]} 45. Ke2 {[%emt 0:02:36]} Rxd5 {[%emt 0:00:35]} 46. Qg3 {[%emt 0:00:20]} Qf5 {[%emt 0:00:25]} 47. Qc7+ {[%emt 0:00:39]} Kg6 {[%emt 0:00:07]} 48. Qxc4 {[%emt 0:00:12]} Bb5 {[%emt 0:00:09]} 0-1

[Event "POL-ch Women MOKATE 2020"]
[Site "Ostrow Wielkopolski"]
[Date "2020.08.11"]
[Round "8.3"]
[White "Antolak, Julia"]
[Black "Waszczuk, Patrycja"]
[Result "1/2-1/2"]
[ECO "B46"]
[WhiteElo "2323"]
[BlackElo "2321"]
[Annotator "ChessBase"]
[PlyCount "61"]
[EventDate "2020.08.04"]
[EventType "tourn"]
[EventCountry "POL"]
[SourceTitle "playchess.com"]
[Source "ChessBase"]
[SourceQuality "1"]
[TimeControl "40/5400+30:1800+30"]

1. e4 {[%emt 0:00:00]} c5 {[%emt 0:00:00]} 2. Nf3 {[%emt 0:00:00]} Nc6 {[%emt 0:00:00]} 3. d4 {[%emt 0:00:00]} cxd4 {[%emt 0:00:00]} 4. Nxd4 {[%emt 0:00:00]} e6 {[%emt 0:00:00]} 5. Nc3 {[%emt 0:00:05]} a6 {[%emt 0:00:00]} 6. Nxc6 {[%emt 0:00:44]} bxc6 {[%emt 0:00:29]} 7. e5 {[%emt 0:00:04]} Qc7 {[%emt 0:00:11]} 8. Bf4 {[%emt 0:00:09]} Bb4 {[%emt 0:07:40]} 9. Bd3 {[%emt 0:00:59]} Ne7 {[%emt 0:02:57]} 10. O-O {[%emt 0:00:58]} Bxc3 {[%emt 0:01:10]} 11. bxc3 {[%emt 0:00:04]} c5 {[%emt 0:04:07]} 12. Qg4 {[%emt 0:07:11]} Bb7 {[%emt 0:01:20]} 13. Rae1 {[%emt 0:06:02]} Ng6 {[%emt 0:12:50]} 14. Bg3 {[%emt 0:09:52]} h5 {[%emt 0:05:05]} 15. Qg5 {[%emt 0:07:53]} h4 {[%emt 0:02:44]} 16. Bxg6 {[%emt 0:03:24]} hxg3 {[%emt 0:01:37]} 17. Be4 {[%emt 0:18:33]} gxh2+ {[%emt 0:01:47]} 18. Kh1 {[%emt 0:00:05]} Bxe4 {[%emt 0:01:53]} 19. Rxe4 {[%emt 0:01:20]} g6 {[%emt 0:06:43]} 20. Rfe1 {[%emt 0:03:39]} Qd8 {[%emt 0:03:27]} 21. Qe3 {[%emt 0:06:16]} d5 {[%emt 0:05:06]} 22. exd6 {[%emt 0:03:14]} Qxd6 {[%emt 0:00:13]} 23. Qg5 {[%emt 0:02:01]} Qe7 {[%emt 0:09:24]} 24. Qe5 {[%emt 0:02:05]} Rh7 {[%emt 0:01:16]} 25. Qg3 {[%emt 0:09:57]} Rd8 {[%emt 0:04:46]} 26. Qf3 {[%emt 0:01:42]} Rh5 {[%emt 0:03:08]} 27. Re5 {[%emt 0:02:19]} Rxe5 {[%emt 0:01:39]} 28. Rxe5 {[%emt 0:00:02]} Qd6 {[%emt 0:01:22]} 29. Qf6 {[%emt 0:02:50]} Qd1+ {[%emt 0:05:03]} 30. Kxh2 {[%emt 0:00:06]} Rd5 {[%emt 0:01:11]} 31. c4 {[%emt 0:07:56]} 1/2-1/2

[Event "POL-ch Women MOKATE 2020"]
[Site "Ostrow Wielkopolski"]
[Date "2020.08.11"]
[Round "8.5"]
[White "Zawadzka, Jolanta"]
[Black "Cyfka, Karina"]
[Result "0-1"]
[ECO "C55"]
[WhiteElo "2419"]
[BlackElo "2411"]
[Annotator "ChessBase"]
[PlyCount "100"]
[EventDate "2020.08.04"]
[EventType "tourn"]
[EventCountry "POL"]
[SourceTitle "playchess.com"]
[Source "ChessBase"]
[SourceQuality "1"]
[TimeControl "40/5400+30:1800+30"]

1. e4 {[%emt 0:00:00]} e5 {[%emt 0:00:00]} 2. Nf3 {[%emt 0:00:00]} Nc6 {[%emt 0:00:00]} 3. d4 {[%emt 0:00:00]} exd4 {[%emt 0:00:00]} 4. Bc4 {[%emt 0:00:00]} Nf6 {[%emt 0:00:11]} 5. e5 {[%emt 0:00:07]} d5 {[%emt 0:00:14]} 6. Bb5 {[%emt 0:00:08]} Ne4 {[%emt 0:00:05]} 7. Nxd4 {[%emt 0:00:07]} Bd7 {[%emt 0:00:06]} 8. Bxc6 {[%emt 0:00:10]} bxc6 {[%emt 0:00:05]} 9. O-O {[%emt 0:00:14]} Be7 {[%emt 0:00:06]} 10. f3 {[%emt 0:04:05]} Nc5 {[%emt 0:01:03]} 11. Be3 {[%emt 0:05:42]} O-O {[%emt 0:19:08]} 12. Nb3 {[%emt 0:09:17]} Na4 {[%emt 0:12:29]} 13. Qd4 {[%emt 0:12:21]} Nb6 {[%emt 0:00:52]} 14. N1d2 {[%emt 0:02:25]} f6 {[%emt 0:00:35]} 15. f4 {[%emt 0:01:31]} Qe8 {[%emt 0:05:40]} 16. Rae1 {[%emt 0:10:56]} fxe5 {[%emt 0:04:09]} 17. fxe5 {[%emt 0:00:15]} Qg6 {[%emt 0:01:23]} 18. c3 {[%emt 0:11:42]} Bh3 {[%emt 0:08:13]} 19. Re2 {[%emt 0:02:22]} Rxf1+ {[%emt 0:00:57]} 20. Nxf1 {[%emt 0:00:20]} Nc4 {[%emt 0:02:47]} 21. Bf4 {[%emt 0:02:36]} a5 {[%emt 0:07:11]} 22. Bg3 {[%emt 0:03:28]} Bf5 {[%emt 0:01:41]} 23. Nc5 {[%emt 0:07:45]} Qg4 {[%emt 0:13:25]} 24. Rf2 {[%emt 0:02:30]} Qxd4 {[%emt 0:01:03]} 25. cxd4 {[%emt 0:00:02]} Bxc5 {[%emt 0:02:36]} 26. dxc5 {[%emt 0:00:05]} Be6 {[%emt 0:01:26]} 27. b3 {[%emt 0:00:54]} Na3 {[%emt 0:00:05]} 28. Rf4 {[%emt 0:01:44]} Nb5 {[%emt 0:00:49]} 29. Be1 {[%emt 0:01:02]} d4 {[%emt 0:00:52]} 30. Bf2 {[%emt 0:10:18]} a4 {[%emt 0:00:25]} 31. h4 {[%emt 0:02:24]} Bxb3 {[%emt 0:03:34]} 32. a3 {[%emt 0:02:40]} d3 {[%emt 0:04:28]} 33. Nd2 {[%emt 0:01:56]} Nxa3 {[%emt 0:00:26]} 34. Rd4 {[%emt 0:00:06]} Bc2 {[%emt 0:00:59]} 35. e6 {[%emt 0:01:32]} Nb5 {[%emt 0:03:29]} 36. Rd7 {[%emt 0:00:08]} Re8 {[%emt 0:00:10]} 37. Nf3 {[%emt 0:03:18]} h6 {[%emt 0:07:06]} 38. Bg3 {[%emt 0:00:30]} Rxe6 {[%emt 0:00:15]} 39. Be5 {[%emt 0:00:18]} a3 {[%emt 0:00:41]} 40. Bxg7 {[%emt 0:00:00]} a2 {[%emt 0:00:00]} 41. Ba1 {[%emt 0:08:28]} Kf8 {[%emt 0:03:10]} 42. Kf1 {[%emt 0:12:23]} Ke8 {[%emt 0:07:05]} 43. Rh7 {[%emt 0:00:14]} d2 {[%emt 0:01:19]} 44. Rh8+ {[%emt 0:00:18]} Kd7 {[%emt 0:00:47]} 45. Nxd2 {[%emt 0:01:21]} Bd3+ {[%emt 0:00:04]} 46. Kf2 {[%emt 0:01:00]} Re2+ {[%emt 0:00:05]} 47. Kf3 {[%emt 0:00:04]} Rxd2 {[%emt 0:00:04]} 48. Rxh6 {[%emt 0:00:31]} Rd1 {[%emt 0:01:14]} 49. Bh8 {[%emt 0:00:43]} Bc4 {[%emt 0:00:52]} 50. Ke3 {[%emt 0:00:52]} Rd3+ {[%emt 0:00:51]} 0-1

[Event "POL-ch Women MOKATE 2020"]
[Site "Ostrow Wielkopolski"]
[Date "2020.08.12"]
[Round "9.1"]
[White "Cyfka, Karina"]
[Black "Kucharska, Honorata"]
[Result "1/2-1/2"]
[ECO "A45"]
[WhiteElo "2411"]
[BlackElo "2159"]
[Annotator "ChessBase"]
[PlyCount "67"]
[EventDate "2020.08.04"]
[EventType "tourn"]
[EventCountry "POL"]
[SourceTitle "playchess.com"]
[Source "ChessBase"]
[SourceQuality "1"]
[TimeControl "40/5400+30:1800+30"]

1. d4 {[%emt 0:00:00]} Nf6 {[%emt 0:00:00]} 2. Nc3 {[%emt 0:00:00]} d5 {[%emt 0:00:18]} 3. Bf4 {[%emt 0:00:00]} e6 {[%emt 0:00:24]} 4. e3 {[%emt 0:00:55]} Bb4 {[%emt 0:01:40]} 5. Bd3 {[%emt 0:09:07]} c5 {[%emt 0:04:29]} 6. dxc5 {[%emt 0:02:26]} Bxc5 {[%emt 0:01:14]} 7. Nb5 {[%emt 0:02:31]} Na6 {[%emt 0:00:05]} 8. c3 {[%emt 0:01:34]} O-O {[%emt 0:03:34]} 9. Nf3 {[%emt 0:01:20]} Bd7 {[%emt 0:04:43]} 10. a4 {[%emt 0:00:42]} Be7 {[%emt 0:04:14]} 11. b4 {[%emt 0:11:50]} Bxb5 {[%emt 0:02:33]} 12. axb5 {[%emt 0:01:25]} Nb8 {[%emt 0:02:42]} 13. Qc2 {[%emt 0:10:38]} Nbd7 {[%emt 0:06:06]} 14. O-O {[%emt 0:00:43]} h6 {[%emt 0:04:36]} 15. h3 {[%emt 0:00:22]} Nb6 {[%emt 0:03:33]} 16. Rfd1 {[%emt 0:07:24]} Bd6 {[%emt 0:07:07]} 17. c4 {[%emt 0:14:33]} Bxf4 {[%emt 0:14:09]} 18. exf4 {[%emt 0:00:06]} Nxc4 {[%emt 0:04:43]} 19. Bxc4 {[%emt 0:00:10]} Rc8 {[%emt 0:00:01]} 20. Ne5 {[%emt 0:07:00]} Qb6 {[%emt 0:03:29]} 21. Qa2 {[%emt 0:00:21]} dxc4 {[%emt 0:04:37]} 22. Nxc4 {[%emt 0:00:21]} Qc7 {[%emt 0:00:26]} 23. Ne5 {[%emt 0:02:37]} Nd5 {[%emt 0:06:22]} 24. Qxa7 {[%emt 0:03:26]} Nxf4 {[%emt 0:01:12]} 25. Nd7 {[%emt 0:04:15]} Rfd8 {[%emt 0:02:30]} 26. Nc5 {[%emt 0:01:01]} Ne2+ {[%emt 0:04:26]} 27. Kh1 {[%emt 0:01:15]} Rxd1+ {[%emt 0:02:43]} 28. Rxd1 {[%emt 0:00:02]} Rd8 {[%emt 0:00:23]} 29. Qa1 {[%emt 0:06:14]} b6 {[%emt 0:02:40]} 30. Ne4 {[%emt 0:03:14]} Rxd1+ {[%emt 0:01:59]} 31. Qxd1 {[%emt 0:00:26]} Qc4 {[%emt 0:01:15]} 32. Nd6 {[%emt 0:03:06]} Qxb4 {[%emt 0:00:16]} 33. Nxf7 {[%emt 0:00:53]} Ng3+ {[%emt 0:00:23]} 34. fxg3 {[%emt 0:00:43]} 1/2-1/2

[Event "POL-ch Women MOKATE 2020"]
[Site "Ostrow Wielkopolski"]
[Date "2020.08.12"]
[Round "9.2"]
[White "Kubicka, Anna"]
[Black "Zawadzka, Jolanta"]
[Result "1/2-1/2"]
[ECO "B20"]
[WhiteElo "2259"]
[BlackElo "2419"]
[Annotator "ChessBase"]
[PlyCount "71"]
[EventDate "2020.08.04"]
[EventType "tourn"]
[EventCountry "POL"]
[SourceTitle "playchess.com"]
[Source "ChessBase"]
[SourceQuality "1"]
[TimeControl "40/5400+30:1800+30"]

1. e4 {[%emt 0:00:00]} c5 {[%emt 0:00:00]} 2. Ne2 {[%emt 0:00:00]} Nf6 {[%emt 0:00:02]} 3. Nbc3 {[%emt 0:00:11]} d5 {[%emt 0:00:21]} 4. exd5 {[%emt 0:00:12]} Nxd5 {[%emt 0:00:06]} 5. Nxd5 {[%emt 0:01:03]} Qxd5 {[%emt 0:00:07]} 6. Nc3 {[%emt 0:00:18]} Qd8 {[%emt 0:00:48]} 7. g3 {[%emt 0:01:18]} h5 {[%emt 0:02:15]} 8. d3 {[%emt 0:02:34]} Bg4 {[%emt 0:04:47]} 9. Be2 {[%emt 0:00:25]} Qd7 {[%emt 0:01:41]} 10. Be3 {[%emt 0:01:20]} e5 {[%emt 0:16:38]} 11. Qd2 {[%emt 0:02:10]} Nc6 {[%emt 0:00:25]} 12. f4 {[%emt 0:30:42]} exf4 {[%emt 0:09:13]} 13. Bxf4 {[%emt 0:00:13]} Nd4 {[%emt 0:01:28]} 14. O-O-O {[%emt 0:05:39]} Nxe2+ {[%emt 0:01:39]} 15. Nxe2 {[%emt 0:00:07]} O-O-O {[%emt 0:04:15]} 16. Rde1 {[%emt 0:02:08]} h4 {[%emt 0:03:44]} 17. Nc3 {[%emt 0:03:56]} f6 {[%emt 0:02:43]} 18. gxh4 {[%emt 0:03:31]} Rxh4 {[%emt 0:10:28]} 19. Bg3 {[%emt 0:01:44]} Rh7 {[%emt 0:01:49]} 20. Ne4 {[%emt 0:02:49]} f5 {[%emt 0:07:20]} 21. Qf4 {[%emt 0:12:05]} Qc6 {[%emt 0:00:59]} 22. Ng5 {[%emt 0:05:20]} Bd6 {[%emt 0:02:40]} 23. Qe3 {[%emt 0:02:02]} Bxg3 {[%emt 0:01:54]} 24. Qxg3 {[%emt 0:00:38]} Rh5 {[%emt 0:01:45]} 25. Nf7 {[%emt 0:05:40]} Rf8 {[%emt 0:02:36]} 26. Nd6+ {[%emt 0:01:37]} Kd7 {[%emt 0:01:50]} 27. Nc4 {[%emt 0:01:26]} Kc8 {[%emt 0:01:14]} 28. Qe5 {[%emt 0:03:52]} Rd8 {[%emt 0:02:08]} 29. Rhg1 {[%emt 0:01:35]} g6 {[%emt 0:01:21]} 30. Qe7 {[%emt 0:01:16]} Qc7 {[%emt 0:03:53]} 31. Qf6 {[%emt 0:03:51]} Rxh2 {[%emt 0:01:21]} 32. Re7 {[%emt 0:02:37]} Qc6 {[%emt 0:06:58]} 33. Re6 {[%emt 0:01:27]} Qc7 {[%emt 0:00:49]} 34. Re7 {[%emt 0:00:58]} Qc6 {[%emt 0:00:08]} 35. Re6 {[%emt 0:00:02]} Qc7 {[%emt 0:02:05]} 36. Re7 {[%emt 0:00:03]} 1/2-1/2